bitfinex/quotes_ETHUSD_20250801
["timestamp","ask_amount","ask_price","bid_price","bid_amount"]
[1754034781015,4.299,3643.6,3643.4,0.1376]
[1754034781203,4.298,3643.6,3643.2,6.33018992]
[1754034781404,4.298,3643.6,3643.5,2.74461369]
[1754034781563,4.298,3643.6,3643.4,2.74466274]
[1754034781899,4.298,3643.6,3643.5,0.4478]
[1754034782477,0.1376,3643.7,3643.5,0.4478]
[1754034782683,4.297,3643.7,3643.6,20.95899197]
[1754034782899,4.297,3643.7,3643.6,20.51119197]
[1754034783210,5.2165,3643.7,3643.6,3.0]
[1754034784606,0.1376,3643.7,3643.6,3.0]
[1754034784815,0.7819,3644.1,3643.7,3.0]
[1754034785021,0.4334,3644.7,3643.7,3.4478]
[1754034785222,0.4334,3644.7,3644.3,3.0]
[1754034785223,0.7819,3644.5,3644.3,3.0]
[1754034785520,0.7819,3644.4,3644.3,3.0]
[1754034785685,0.9187,3644.4,3644.3,3.0]
[1754034786089,0.1368,3644.4,3644.3,3.0]
[1754034786286,4.4328,3644.4,3644.3,3.0]
[1754034786513,5.2147,3644.4,3644.3,3.0]
[1754034787295,4.4328,3644.4,3644.3,3.0]
[1754034787698,5.2147,3644.4,3644.3,3.0]
[1754034787884,5.2117,3644.4,3644.3,3.0]
[1754034788082,0.9187,3644.4,3644.3,3.0]
[1754034788282,5.2117,3644.4,3644.3,3.0]
[1754034788816,0.1378,3644.4,3644.3,3.0]
[1754034788984,4.4308,3644.4,3644.3,3.0]
[1754034789519,4.4308,3644.4,3644.3,3.4478]
[1754034790221,4.4308,3644.4,3644.3,3.0]
[1754034790823,5.2127,3644.4,3644.3,3.0]
[1754034791024,5.2087,3644.4,3643.7,3.1396]
[1754034791323,5.2087,3644.4,3643.7,2.74646195]
[1754034791324,0.1376,3644.0,3643.7,2.74646195]
[1754034791502,4.289,3643.9,3643.7,2.74646195]
[1754034791702,4.289,3643.9,3643.8,6.19218772]
[1754034792668,4.289,3643.9,3643.8,3.4478]
[1754034793178,4.289,3643.9,3643.8,3.0]
[1754034793376,4.289,3643.9,3643.8,3.4478]
[1754034795276,4.287,3643.9,3643.8,3.4478]
[1754034795463,4.287,3643.9,3643.7,0.002]
[1754034795640,5.0689,3643.9,3643.7,0.002]
[1754034795841,0.7819,3643.8,3643.7,0.002]
[1754034796068,0.77404793,3643.8,3643.7,0.002]
[1754034796266,4.4296,3643.8,3643.7,0.002]
[1754034796664,0.1376,3643.8,3643.7,0.002]
[1754034796866,4.4296,3643.8,3643.7,0.002]
[1754034797780,0.001,3644.4,3643.8,2.74432297]
[1754034798086,0.1376,3644.1,3643.7,3.98683364]
[1754034798388,0.1376,3644.1,3643.8,0.4508]
[1754034798884,0.1376,3644.1,3643.9,3.0]
[1754034799191,0.1376,3644.1,3643.9,0.4508]
[1754034800399,0.001,3644.4,3644.0,0.47824237]
[1754034800609,0.001,3644.4,3644.3,20.51119197]
[1754034800908,4.288,3644.4,3644.3,20.51119197]
[1754034801051,4.4248,3644.4,3644.3,20.51119197]
[1754034801480,0.8758,3644.4,3644.3,20.51119197]
[1754034801681,5.1628,3644.4,3644.3,20.51119197]
[1754034802294,5.1628,3644.4,3644.3,3.0]
[1754034803289,5.67918,3644.4,3643.7,0.002]
[1754034803609,0.1376,3644.1,3643.7,3.002]
[1754034803912,4.283,3644.0,3643.7,3.002]
[1754034804111,0.1376,3644.1,3643.9,2.74424484]
[1754034804267,0.1376,3644.1,3644.0,20.25542907]
[1754034804601,4.282,3644.1,3644.0,24.49582907]
[1754034805201,0.001,3644.4,3644.3,2.74401119]
[1754034805404,4.283,3645.1,3644.4,3.0]
[1754034805707,4.283,3644.9,3644.7,20.51119197]
[1754034806263,4.283,3644.9,3644.7,20.96199197]
[1754034806670,4.283,3644.9,3644.7,23.70570201]
[1754034807179,4.283,3644.9,3644.7,20.96199197]
[1754034807390,4.283,3644.9,3644.7,20.51119197]
[1754034807606,0.739,3644.8,3644.7,20.51119197]
[1754034807770,5.022,3644.8,3644.7,3.0]
[1754034810377,4.284,3644.8,3644.7,3.0]
[1754034811902,5.022,3644.8,3644.7,3.0]
[1754034813012,6.01362,3644.8,3644.2,0.1376]
[1754034813336,0.1376,3644.3,3643.8,0.1376]
[1754034813497,4.274,3644.2,3644.0,3.0]
[1754034813691,4.274,3644.2,3643.7,3.002]
[1754034813692,4.274,3644.2,3644.1,6.98456179]
[1754034814022,4.274,3644.2,3644.1,24.04495376]
[1754034814225,4.274,3644.2,3644.1,24.49575376]
[1754034815187,4.274,3644.2,3644.1,20.96199197]
[1754034815386,4.274,3644.2,3644.1,23.70615376]
[1754034815783,0.1368,3644.5,3644.3,3.0]
[1754034815986,4.272,3644.4,3644.3,3.0]
[1754034816589,0.8748,3644.5,3644.3,3.0]
[1754034816789,4.272,3644.4,3644.3,3.0]
[1754034816989,0.1368,3644.5,3644.3,3.4508]
[1754034817290,4.27,3644.4,3644.3,3.4508]
[1754034817815,4.27,3644.4,3644.3,3.0]
[1754034818129,5.008,3644.4,3644.3,3.0]
[1754034818302,5.95488,3644.4,3643.7,0.002]
[1754034818506,0.1376,3644.2,3643.7,0.002]
[1754034818901,0.738,3644.1,3643.8,3.0]
[1754034819186,0.738,3644.0,3643.7,0.002]
[1754034819387,4.269,3643.9,3643.7,0.002]
[1754034819614,4.269,3643.9,3643.8,3.0]
[1754034820434,4.269,3643.9,3643.7,0.002]
[1754034821635,4.26679475,3643.9,3643.7,0.002]
[1754034821807,5.00479475,3643.9,3643.7,0.002]
[1754034822204,4.26679475,3643.9,3643.7,0.002]
[1754034822416,4.26679475,3643.9,3643.8,3.0]
[1754034822597,5.00479475,3643.9,3643.7,0.002]
[1754034823439,0.738,3643.8,3643.7,0.002]
[1754034823733,0.8756,3643.8,3643.7,0.002]
[1754034824929,1.308,3643.8,3643.7,0.002]
[1754034825093,1.86547947,3643.8,3643.7,0.002]
[1754034826695,5.15986719,3643.8,3643.7,0.002]
[1754034826895,12.21986719,3643.8,3643.7,0.002]
[1754034829442,15.21986719,3643.8,3643.7,0.002]
[1754034830209,15.35290907,3643.8,3643.7,0.002]
[1754034830904,19.48686719,3643.8,3643.7,0.002]
[1754034831502,16.48686719,3643.8,3643.7,0.002]
[1754034832203,12.21986719,3643.8,3643.7,0.002]
[1754034832404,23.08386719,3643.8,3643.7,0.002]
[1754034832613,20.33947947,3643.8,3643.7,0.002]
[1754034832818,23.08386719,3643.8,3643.7,0.002]
[1754034833604,20.33947947,3643.8,3643.7,0.002]
[1754034833805,23.08386719,3643.8,3643.7,0.002]
[1754034835356,26.08386719,3643.8,3643.7,0.002]
[1754034838286,26.07986719,3643.8,3643.7,0.002]
[1754034840288,28.97286719,3643.8,3643.7,0.002]
[1754034841793,24.70886719,3643.8,3643.7,0.002]
[1754034841951,25.64546719,3643.8,3643.7,0.002]
[1754034842283,26.07786719,3643.8,3643.7,0.002]
[1754034843249,25.64546719,3643.8,3643.7,0.002]
[1754034843456,26.07786719,3643.8,3643.7,0.002]
[1754034845474,25.64546719,3643.8,3643.7,0.002]
[1754034846374,21.38346719,3643.8,3643.7,0.002]
[1754034846579,26.07686719,3643.8,3643.7,0.002]
[1754034850192,28.96986719,3643.8,3643.7,0.002]
[1754034850359,28.96986719,3643.8,3642.5,0.4667]
[1754034850360,0.55,3642.6,3642.5,0.4667]
[1754034850561,11.866,3642.6,3642.5,0.4667]
[1754034850882,12.0036,3642.6,3642.2,0.4667]
[1754034851196,12.0036,3642.6,3642.3,0.7548]
[1754034851197,0.1376,3642.4,3642.3,0.7548]
[1754034851402,11.867,3642.4,3642.3,0.7548]
[1754034851602,13.46583833,3642.4,3642.3,1.2215]
[1754034852292,16.21128089,3642.4,3642.3,1.2215]
[1754034852694,0.55,3642.1,3641.8,0.4667]
[1754034853044,0.6876,3641.9,3641.8,0.7548]
[1754034853527,0.6876,3641.9,3641.8,1.2215]
[1754034855207,1.84176,3641.9,3641.8,0.4667]
[1754034855440,0.1376,3641.9,3641.8,1.2215]
[1754034855647,4.9426,3641.9,3641.8,1.2215]
[1754034855851,4.9426,3641.9,3641.8,0.4667]
[1754034856148,0.55,3641.8,3641.6,0.4667]
[1754034856452,0.6876,3641.6,3641.5,0.002]
[1754034856805,1.18186,3641.6,3641.5,0.002]
[1754034857108,1.18186,3641.6,3641.5,1.2242]
[1754034857804,0.1376,3641.6,3641.5,1.2242]
[1754034859735,4.3926,3641.6,3641.5,1.2242]
[1754034861118,4.3926,3641.6,3641.5,0.4626]
[1754034862952,4.9426,3641.6,3641.5,0.002]
[1754034863167,6.5447547,3641.6,3641.5,0.002]
[1754034863790,5.7664547,3641.6,3641.5,0.002]
[1754034863921,5.7664547,3641.6,3641.5,0.4626]
[1754034864128,5.7664547,3641.6,3641.5,0.002]
[1754034864427,4.3926,3641.6,3641.5,0.4626]
[1754034864668,6.598,3642.0,3641.5,1.2242]
[1754034864979,4.255,3641.9,3641.8,20.51119197]
[1754034865142,4.255,3641.9,3641.8,4.2222]
[1754034865471,4.3926,3641.9,3641.8,4.2222]
[1754034866137,0.1376,3641.9,3641.8,0.4606]
[1754034866458,4.3926,3641.9,3641.8,0.5741155]
[1754034866663,4.3926,3641.9,3641.5,0.002]
[1754034866864,4.255,3641.9,3641.5,0.002]
[1754034867162,0.1376,3641.6,3641.5,0.002]
[1754034867466,4.3926,3641.6,3641.5,0.002]
[1754034867700,4.9426,3641.6,3641.5,0.002]
[1754034867864,6.1946,3641.6,3641.5,0.002]
[1754034868600,4.9426,3641.6,3641.5,0.002]
[1754034868801,4.9426,3641.6,3641.5,0.4626]
[1754034868970,0.6876,3641.6,3641.5,1.2242]
[1754034869177,0.1376,3641.6,3641.5,1.2242]
[1754034869366,4.3926,3641.6,3641.5,1.2242]
[1754034869562,5.64641,3641.6,3641.5,0.002]
[1754034870467,5.64641,3641.6,3641.5,0.4626]
[1754034870679,5.64641,3641.6,3641.5,1.2242]
[1754034870680,0.1376,3641.6,3641.5,1.2242]
[1754034870865,4.3926,3641.6,3641.5,1.2242]
[1754034871275,4.3926,3641.6,3641.5,0.002]
[1754034871477,5.7209,3641.6,3641.5,0.002]
[1754034871824,6.1946,3641.6,3641.5,0.002]
[1754034872022,7.79464837,3641.6,3641.5,0.002]
[1754034872629,20.60069406,3641.6,3641.5,0.002]
[1754034872834,19.00064569,3641.6,3641.5,0.002]
[1754034873337,21.89564569,3641.6,3641.5,0.002]
[1754034874419,22.03381295,3641.6,3641.5,0.002]
[1754034875118,19.13881295,3641.6,3641.5,0.002]
[1754034875324,21.3272899,3641.6,3641.5,0.002]
[1754034876010,24.6062882,3641.6,3641.5,1e-08]
[1754034876327,54.6062882,3641.6,3641.5,1e-08]
[1754034877022,24.6062882,3641.6,3641.5,1e-08]
[1754034877226,54.6062882,3641.6,3641.5,1e-08]
[1754034878007,54.2222899,3641.6,3641.5,1e-08]
[1754034878399,19.9672899,3641.6,3641.5,1e-08]
[1754034878613,20.7782899,3641.6,3641.5,1e-08]
[1754034879028,21.3282899,3641.6,3641.5,1e-08]
[1754034880201,16.93412264,3641.6,3641.5,1e-08]
[1754034880499,20.16642264,3641.6,3641.5,1e-08]
[1754034880714,21.19012264,3641.6,3641.5,1e-08]
[1754034881035,20.64012264,3641.6,3641.5,1e-08]
[1754034881220,13.58012264,3641.6,3641.5,1e-08]
[1754034881422,14.13012264,3641.6,3641.5,1e-08]
[1754034881609,9.87412264,3641.6,3641.5,1e-08]
[1754034881810,11.94164569,3641.6,3641.5,1e-08]
[1754034885337,14.83664569,3641.6,3641.5,1e-08]
[1754034887347,14.36294569,3641.6,3641.5,1e-08]
[1754034887745,14.82814569,3641.6,3641.5,1e-08]
[1754034888154,9.32864569,3641.6,3641.5,1e-08]
[1754034888358,5.61457102,3641.6,3641.5,1e-08]
[1754034888538,3.1376,3641.6,3641.5,1.21200001]
[1754034888745,4.3936,3641.6,3641.5,1.21200001]
[1754034889456,0.1376,3641.6,3641.5,1.21200001]
[1754034889747,4.3936,3641.6,3641.5,1.21200001]
[1754034890153,0.1376,3641.6,3641.5,1.21200001]
[1754034890448,4.3936,3641.6,3641.5,1.21200001]
[1754034891255,0.1376,3641.6,3641.5,1.21200001]
[1754034891430,4.3936,3641.6,3641.5,1.21200001]
[1754034892567,4.9436,3641.6,3641.5,1.21200001]
[1754034893063,0.6876,3641.6,3641.5,1.21200001]
[1754034893555,4.3936,3641.6,3641.5,1.21200001]
[1754034896437,4.3936,3641.6,3641.5,0.46100001]
[1754034896764,4.3936,3641.6,3641.5,1.21200001]
[1754034897834,4.3936,3641.6,3641.5,0.46100001]
[1754034898329,4.3936,3641.6,3641.5,1e-08]
[1754034898854,4.3946,3641.6,3641.5,1e-08]
[1754034899444,4.3946,3641.6,3641.5,1.21200001]
[1754034901150,4.3936,3641.6,3641.5,1.21200001]
[1754034901558,4.3936,3641.6,3641.5,1e-08]
[1754034902263,4.90903,3641.6,3641.5,1e-08]
[1754034904075,4.3936,3641.6,3641.5,0.46100001]
[1754034904277,0.1386,3641.6,3641.5,1.21200001]
[1754034904449,4.3936,3641.6,3641.5,1.21200001]
[1754034905238,0.1386,3641.6,3641.5,1.21200001]
[1754034905487,4.3936,3641.6,3641.5,1.21200001]
[1754034906474,4.3936,3641.6,3641.5,18.72319198]
[1754034907049,0.001,3642.0,3641.6,5.74604569]
[1754034907367,6.602,3642.1,3642.0,5.74574409]
[1754034907576,10.857,3642.1,3642.0,4.212]
[1754034907882,10.857,3642.1,3642.0,6.95774409]
[1754034908461,0.1386,3642.2,3642.1,5.7456687]
[1754034908775,4.256,3642.2,3642.1,24.46886067]
[1754034908977,0.1376,3642.3,3642.1,24.46886067]
[1754034908978,0.1376,3642.3,3642.2,5.74559332]
[1754034909134,0.1376,3642.5,3642.3,5.74546582]
[1754034909338,4.254,3642.4,3642.3,5.74546582]
[1754034909835,4.254,3642.4,3642.2,3.0]
[1754034910041,4.254,3642.4,3642.3,1.212]
[1754034911753,0.1376,3642.6,3642.3,1.212]
[1754034911968,4.254,3642.5,3642.4,1.212]
[1754034913042,4.254,3642.5,3642.2,3.0]
[1754034913274,0.1376,3642.3,3642.2,3.461]
[1754034913479,0.1376,3642.3,3642.2,3.0]
[1754034913843,0.1376,3642.3,3642.2,4.212]
[1754034914578,0.1376,3642.3,3642.2,4.23945593]
[1754034914741,0.1376,3642.4,3642.2,4.212]
[1754034914942,4.253,3642.6,3642.3,3.95751794]
[1754034915142,4.3906,3642.6,3642.4,1.212]
[1754034915674,4.3906,3642.6,3642.5,1.212]
[1754034916183,6.6,3643.5,3642.5,3.95736719]
[1754034916386,6.6,3643.5,3642.3,2.74551794]
[1754034916387,6.6,3643.5,3642.9,3.0]
[1754034916587,4.253,3643.4,3643.3,17.51119197]
[1754034916752,4.253,3643.6,3643.4,3.0]
[1754034916958,4.253,3643.8,3643.5,1.2531]
[1754034917182,4.253,3643.8,3643.7,20.51119197]
[1754034917394,0.001,3644.3,3643.8,3.0]
[1754034917687,4.253,3644.2,3643.8,3.0]
[1754034918072,0.7671,3644.1,3643.8,3.0]
[1754034918466,0.7671,3644.1,3643.3,4.2531]
[1754034918989,4.253,3644.0,3643.3,4.2531]
[1754034919372,4.253,3644.0,3643.3,3.99785486]
[1754034919561,4.253,3644.0,3643.5,3.0]
[1754034919768,4.253,3644.0,3643.6,1.2531]
[1754034919978,4.253,3644.0,3643.6,0.7844]
[1754034920272,4.253,3644.0,3643.7,1.2531]
[1754034920479,4.253,3644.0,3643.8,1.2531]
[1754034920667,4.253,3644.0,3643.9,0.4687]
[1754034920989,0.001,3644.3,3644.0,2.74418518]
[1754034921178,0.001,3644.3,3644.0,3.0]
[1754034921490,0.001,3644.3,3644.1,1.2531]
[1754034921954,0.001,3644.3,3644.2,1.2531]
[1754034922150,0.001,3644.3,3644.2,0.4687]
[1754034923455,0.001,3644.3,3643.9,0.67094366]
[1754034923657,0.7681,3644.3,3643.7,0.4687]
[1754034923910,0.1376,3644.0,3643.4,1.3907]
[1754034924407,0.1376,3644.0,3643.4,0.1376]
[1754034924609,0.1376,3644.0,3643.2,3.0]
[1754034924610,0.1376,3643.7,3643.2,3.1376]
[1754034924780,0.4539,3644.3,3643.7,3.0]
[1754034924781,0.1376,3643.9,3643.7,3.0]
[1754034924970,0.1376,3643.9,3643.8,1.2531]
[1754034925407,4.252,3644.3,3643.8,1.2531]
[1754034925569,0.1376,3644.1,3643.9,2.77172841]
[1754034925768,0.1376,3644.1,3644.0,1.2531]
[1754034927189,0.001,3644.3,3644.2,3.0]
[1754034927384,0.001,3644.3,3644.2,4.2531]
[1754034927687,0.001,3644.3,3644.2,1.2531]
[1754034928822,0.001,3644.3,3643.9,3.0]
[1754034928988,0.001,3644.3,3643.8,1.3907]
[1754034929190,0.001,3644.3,3643.9,3.0]
[1754034929387,0.7681,3644.3,3643.7,3.0]
[1754034929712,0.1376,3644.1,3643.9,3.0]
[1754034930012,0.1376,3644.1,3643.9,2.74430849]
[1754034930311,0.1376,3644.1,3643.9,3.0]
[1754034930469,0.1376,3644.1,3643.9,5.74430333]
[1754034930669,0.1376,3644.1,3643.9,3.0]
[1754034930874,0.1376,3644.1,3643.8,3.0]
[1754034931073,0.1376,3644.1,3643.7,5.74444347]
[1754034931503,0.1376,3644.1,3643.8,2.74437146]
[1754034931710,0.1376,3644.1,3644.0,2.7442371]
[1754034932030,0.001,3644.3,3644.0,3.0]
[1754034932395,0.001,3644.3,3643.9,0.1376]
[1754034932597,1.22,3644.2,3643.9,0.1376]
[1754034932918,5.0171,3644.1,3643.3,2.74476301]
[1754034933100,0.1376,3643.7,3643.3,3.0]
[1754034933303,0.1376,3643.7,3643.4,0.4687]
[1754034933891,0.1376,3643.7,3643.3,0.7844]
[1754034934092,0.1376,3643.7,3643.2,3.3458921]
[1754034934427,0.1376,3643.5,3643.2,3.0]
[1754034934624,0.1376,3643.5,3643.3,1.2531]
[1754034934814,0.1376,3643.5,3643.3,3.99784786]
[1754034935010,0.1376,3643.5,3643.4,1.2531]
[1754034935522,0.001,3644.3,3643.4,4.28054689]
[1754034935837,0.1376,3644.2,3644.0,3.0]
[1754034936033,0.001,3644.3,3644.1,0.4687]
[1754034936218,0.001,3644.3,3644.2,0.02744086]
[1754034936404,0.001,3644.3,3644.2,0.4687]
[1754034937107,0.001,3644.3,3644.0,3.0]
[1754034937439,0.001,3644.3,3644.0,5.74422989]
[1754034937661,0.001,3644.3,3644.0,6.21292989]
[1754034938130,0.001,3644.3,3644.0,3.4687]
[1754034938330,0.001,3644.3,3644.0,3.0]
[1754034938532,1.22,3644.2,3643.8,0.1376]
[1754034938740,0.001,3644.3,3643.8,0.1376]
[1754034939026,0.001,3644.3,3643.2,2.74483825]
[1754034939027,1.22,3644.1,3643.2,2.74483825]
[1754034939232,0.1376,3643.5,3643.2,2.74483825]
[1754034939436,0.1376,3643.5,3643.4,2.74468902]
[1754034939609,0.1376,3643.5,3643.4,3.02744689]
[1754034939793,0.1376,3643.5,3643.4,3.4687]
[1754034940199,0.1376,3643.5,3643.4,6.21338902]
[1754034941631,5.0161,3644.0,3643.5,3.0]
[1754034941632,4.249,3644.0,3643.5,3.0]
[1754034941821,0.1376,3644.1,3643.9,3.0]
[1754034942131,0.1376,3644.1,3643.8,2.74435818]
[1754034942328,0.1376,3644.1,3644.0,3.0]
[1754034942629,0.1376,3644.1,3643.8,1.2531]
[1754034942842,0.1376,3644.1,3643.9,2.74428742]
[1754034943047,0.1386,3644.1,3643.9,3.99738742]
[1754034943236,0.9057,3644.1,3643.7,3.0]
[1754034943552,0.9057,3644.1,3643.6,3.1376]
[1754034943711,0.7671,3644.0,3643.6,2.74448356]
[1754034943912,0.1376,3643.9,3643.6,2.74448356]
[1754034944812,0.1376,3643.9,3643.7,2.77188114]
[1754034945112,0.1376,3643.9,3643.7,2.74443651]
[1754034945747,0.1386,3644.1,3643.9,3.0]
[1754034945959,0.1386,3644.1,3643.8,1.2531]
[1754034946250,0.1386,3644.1,3643.9,3.21296521]
[1754034946472,0.1386,3644.1,3644.0,2.7442371]
[1754034946673,0.1386,3644.1,3644.0,6.1849371]
[1754034946838,0.001,3644.1,3644.0,6.9631371]
[1754034948369,0.001,3644.1,3644.0,5.8818371]
[1754034948589,0.001,3644.1,3644.0,7.1007371]
[1754034949337,0.001,3644.5,3644.4,5.7439359]
[1754034949747,0.001,3644.8,3644.7,20.25490201]
[1754034949942,0.001,3644.8,3644.7,23.25490201]
[1754034950165,0.001,3644.8,3644.7,23.39170201]
[1754034950364,0.001,3645.2,3645.0,2.74348422]
[1754034950562,0.001,3645.2,3645.1,3.0]
[1754034951774,0.001,3645.2,3645.1,5.74340895]
[1754034952285,0.001,3645.2,3645.1,6.96230895]
[1754034952466,0.001,3645.2,3645.1,6.18410895]
[1754034952649,0.001,3645.4,3645.3,23.25445041]
[1754034953047,0.001,3645.4,3645.3,24.47335041]
[1754034953285,0.001,3645.8,3645.7,2.74295745]
[1754034953482,0.001,3645.8,3645.7,5.95134572]
[1754034953846,0.001,3645.8,3645.7,6.39204572]
[1754034954273,0.001,3645.8,3645.7,5.95134572]
[1754034954476,0.001,3645.8,3645.7,3.20838827]
[1754034955655,0.8127,3645.8,3645.7,3.0]
[1754034956498,0.001,3645.8,3645.7,3.0]
[1754034957304,0.001,3645.8,3645.7,6.18365745]
[1754034957497,0.4492,3646.5,3645.7,6.18365745]
[1754034957498,0.001,3647.4,3645.9,2.74275309]
[1754034957798,0.001,3647.4,3645.8,3.0]
[1754034957799,5.0577,3646.9,3646.1,3.0]
[1754034957965,0.1368,3646.8,3646.6,3.0]
[1754034958157,0.9485,3646.8,3646.6,3.0]
[1754034958790,0.1368,3646.8,3646.6,3.0]
[1754034958988,0.9485,3646.8,3646.6,3.0]
[1754034959813,0.1368,3646.8,3646.2,0.1368]
[1754034960099,0.1368,3646.9,3646.5,20.25351109]
[1754034960258,0.9485,3646.9,3646.5,17.51119197]
[1754034960598,1.2609,3646.8,3646.3,3.0]
[1754034960765,0.1368,3646.5,3645.6,0.1368]
[1754034961089,1.2609,3646.4,3645.2,17.51119197]
[1754034961294,6.98903236,3647.0,3645.5,2.74310713]
[1754034961295,0.1368,3645.7,3645.5,2.74310713]
[1754034961453,5.5059,3646.3,3645.4,2.74317433]
[1754034961653,1.2609,3646.2,3645.8,3.0]
[1754034961858,4.245,3646.2,3645.8,3.0]
[1754034962062,0.1368,3646.2,3645.8,3.4407]
[1754034962297,0.1368,3646.3,3646.0,3.0]
[1754034962496,0.001,3647.0,3646.3,3.0]
[1754034962690,0.001,3647.0,3646.9,3.0]
[1754034962890,0.001,3647.0,3646.9,5.74205489]
[1754034963486,0.001,3647.0,3646.9,3.0]
[1754034966986,0.001,3647.0,3646.9,6.18275489]
[1754034967299,0.001,3647.4,3647.3,5.74175417]
[1754034967504,0.001,3647.4,3647.3,23.25294614]
[1754034967661,0.001,3647.4,3647.3,27.49794614]
[1754034967865,0.001,3647.4,3647.3,28.85364614]
[1754034969282,0.001,3647.4,3647.3,20.64799197]
[1754034969481,0.001,3647.4,3647.3,24.89199197]
[1754034969688,0.001,3647.4,3647.3,20.64799197]
[1754034970386,0.001,3647.4,3647.3,3.34074266]
[1754034970572,0.001,3647.4,3647.3,6.08249683]
[1754034971217,0.001,3647.4,3647.3,23.5936888]
[1754034971785,0.001,3647.4,3647.3,24.8125888]
[1754034972802,0.001,3647.4,3647.3,20.85193463]
[1754034973105,0.001,3647.4,3647.3,23.5936888]
[1754034973596,0.001,3647.4,3647.3,24.3718888]
[1754034973800,0.001,3647.4,3647.3,24.8125888]
[1754034974969,0.001,3647.4,3647.3,24.0343888]
[1754034975602,0.001,3647.4,3647.3,28.2773888]
[1754034975794,0.001,3647.4,3647.3,29.0555888]
[1754034976380,0.9485,3648.1,3647.6,3.0]
[1754034976599,0.9485,3648.1,3647.6,2.74151892]
[1754034976600,0.1368,3648.1,3647.6,2.74151892]
[1754034976801,1.2619,3648.0,3647.6,3.1368]
[1754034976981,0.4601,3648.0,3647.6,0.1368]
[1754034977181,0.8018,3647.9,3647.6,3.1368]
[1754034977394,0.8018,3647.9,3647.6,0.1368]
[1754034977795,0.8018,3647.8,3647.6,0.1368]
[1754034978199,0.8018,3647.8,3647.6,3.1368]
[1754034978503,0.8018,3647.8,3647.6,0.1368]
[1754034979481,0.8018,3647.8,3647.4,3.0]
[1754034979482,1.2619,3647.7,3647.4,3.0]
[1754034979687,0.1368,3647.8,3647.4,3.0]
[1754034979888,1.2619,3647.6,3647.4,3.0]
[1754034980084,0.8018,3647.6,3647.4,3.0]
[1754034980383,0.1368,3647.8,3647.4,3.0]
[1754034980584,0.1368,3647.8,3647.4,5.74166454]
[1754034980785,0.9386,3647.8,3647.4,3.0]
[1754034981020,0.8018,3647.7,3647.4,3.0]
[1754034981317,0.8018,3647.7,3647.4,5.7416188]
[1754034981486,0.1368,3647.8,3647.4,3.0]
[1754034981685,0.8018,3647.7,3647.4,3.0]
[1754034982012,0.8018,3647.6,3647.4,3.0]
[1754034982575,1.2619,3647.5,3647.3,0.20394266]
[1754034982797,1.0834,3648.4,3647.1,3.1368]
[1754034982798,1.2619,3647.4,3647.1,3.1368]
[1754034983091,0.1368,3647.6,3647.1,0.1368]
[1754034983092,0.8018,3647.3,3647.1,0.1368]
[1754034983287,0.4601,3647.2,3646.7,0.1368]
[1754034983488,0.8018,3647.6,3647.2,3.0]
[1754034983801,0.8018,3647.6,3647.1,3.1368]
[1754034983802,0.8018,3647.5,3647.1,3.1368]
[1754034984001,0.8018,3647.5,3647.2,2.74182363]
[1754034984188,0.8018,3647.5,3647.1,5.87867469]
[1754034984389,5.5039,3648.0,3647.5,3.0]
[1754034984600,5.5039,3648.0,3647.3,0.1368]
[1754034984601,0.1368,3647.8,3647.3,0.1368]
[1754034984806,0.8018,3647.7,3647.4,3.0]
[1754034985110,0.1368,3647.8,3647.3,2.87854392]
[1754034985311,0.8018,3647.7,3647.3,2.87854392]
[1754034985502,0.1368,3647.8,3647.4,2.74167228]
[1754034985687,0.9386,3647.8,3647.3,0.1368]
[1754034985892,0.9386,3647.8,3647.3,2.87855213]
[1754034986314,0.9386,3647.8,3647.3,0.1368]
[1754034986519,1.2619,3647.7,3647.3,0.1368]
[1754034987011,1.2619,3647.6,3647.3,0.1368]
[1754034987421,1.2619,3647.5,3647.3,0.1368]
[1754034987773,1.3987,3647.4,3646.8,3.1368]
[1754034988085,0.8018,3647.3,3646.8,0.33769615]
[1754034988415,1.2619,3647.3,3646.8,0.33769615]
[1754034988720,0.8018,3647.2,3646.8,0.33769615]
[1754034988895,0.8018,3647.2,3646.8,3.33769615]
[1754034989096,0.8018,3647.2,3647.1,0.002]
[1754034989278,0.4601,3647.3,3647.1,0.002]
[1754034989478,0.4601,3647.2,3647.1,0.002]
[1754034989929,1.2619,3647.2,3647.1,0.002]
[1754034990298,0.8018,3647.2,3647.1,0.002]
[1754034990986,1.2619,3647.2,3647.1,0.002]
[1754034991535,0.1368,3647.4,3647.1,0.002]
[1754034991900,4.242,3648.0,3647.1,0.002]
[1754034991901,0.8018,3647.6,3647.2,3.0]
[1754034992101,0.1368,3647.5,3647.2,2.74182697]
[1754034992428,0.1368,3647.6,3647.4,3.0]
[1754034992751,0.1368,3647.6,3647.4,3.49501679]
[1754034992933,0.1368,3647.6,3647.1,5.7438484]
[1754034993231,0.9386,3647.6,3647.2,2.74182511]
[1754034993430,0.1368,3647.6,3647.2,2.74182511]
[1754034993639,0.1368,3647.6,3647.1,3.002]
[1754034993939,1.2619,3647.5,3647.1,3.002]
[1754034994124,0.8018,3647.5,3647.1,3.002]